[Event "European Womens-ch 2025"]
[Site "Rhodes"]
[Date "2025.04.02"]
[Round "3.1"]
[White "Khotenashvili, Bella"]
[Black "Brunello, Marina"]
[Result "1/2-1/2"]
[Annotator "RC"]
[ECO "E17"]
[WhiteElo "2418"]
[BlackElo "2330"]
[PlyCount "61"]
[EventDate "2025.03.29"]
[EventType "swiss"]
[EventCountry "GRE"]
[SourceTitle "playchess.com"]
[Source "ChessBase"]
[SourceQuality "1"]
[TimeControl "40/5400+30:1800+30"]

1. Nf3 {[%emt 0:00:08]} Nf6 {[%emt 0:02:02]} 2. c4 {[%emt 0:00:18]} b6 {[%emt 0:00:32]} 3. d4 {[%emt 0:00:47]} e6 {[%emt 0:00:12]} 4. g3 {[%emt 0:00:21]} Bb7 {[%emt 0:00:14]} 5. Bg2 {[%emt 0:00:11]} Be7 {[%emt 0:00:05]} 6. O-O {[%emt 0:00:16]} O-O {[%emt 0:00:06]} 7. h4 {[%emt 0:00:11]} Na6 {[%emt 0:08:28]} 8. Nc3 {[%emt 0:04:11]} d5 {[%emt 0:00:42]} 9. cxd5 {[%emt 0:01:26]} exd5 {[%emt 0:00:42]} 10. Bf4 {[%emt 0:02:44]} c5 {[%emt 0:12:18]} 11. Rc1 {[%emt 0:02:44]} Nc7 {[%emt 0:04:15]} 12. dxc5 {[%emt 0:02:59]} Ne6 {[%emt 0:04:10]} 13. c6 {[%emt 0:11:56]} Bxc6 {[%emt 0:01:17]} 14. Be5 {[%emt 0:02:46]} Bb7 {[%emt 0:06:08]} 15. Qc2 {[%emt 0:26:50]} Rc8 {[%emt 0:12:03]} 16. Rcd1 {[%emt 0:02:00]} Rc5 {[%emt 0:15:27]} 17. Ng5 {[%emt 0:10:56]} h6 {[%emt 0:04:09]} 18. Nxe6 {[%emt 0:01:25]} fxe6 {[%emt 0:00:04]} 19. Bh3 {[%emt 0:02:30]} Qc8 {[%emt 0:00:50]} 20. Qg6 {[%emt 0:01:07]} Qc6 {[%emt 0:01:33]} 21. Kh2 {[%emt 0:03:47]} Rc4 {[%emt 0:03:49]} 22. f3 {[%emt 0:04:05]} Bc8 {[%emt 0:04:00]} 23. Qd3 {[%emt 0:05:11]} Nd7 {[%emt 0:04:13]} 24. Bd4 {[%emt 0:00:52]} Bf6 {[%emt 0:00:40]} 25. Bxf6 {[%emt 0:00:53]} Nxf6 {[%emt 0:00:14]} 26. Qe3 {[%emt 0:05:32]} Re8 {[%emt 0:03:14]} 27. Qe5 {[%emt 0:00:38]} Nd7 {[%emt 0:00:38]} 28. Qh5 {[%emt 0:00:50]} Nf6 {[%emt 0:00:03]} 29. Qe5 {[%emt 0:02:46]} Nd7 {[%emt 0:00:34]} 30. Qh5 {[%emt 0:00:48]} Nf6 {[%emt 0:00:04]} 31. Qe5 {[%emt 0:00:46]} 1/2-1/2

[Event "European Womens-ch 2025"]
[Site "Rhodes"]
[Date "2025.04.02"]
[Round "3.2"]
[White "Beydullayeva, Govhar"]
[Black "Radeva, Viktoria"]
[Result "1/2-1/2"]
[Annotator "RC"]
[ECO "D38"]
[WhiteElo "2400"]
[BlackElo "2297"]
[PlyCount "49"]
[EventDate "2025.03.29"]
[EventType "swiss"]
[EventCountry "GRE"]
[SourceTitle "playchess.com"]
[Source "ChessBase"]
[SourceQuality "1"]
[TimeControl "40/5400+30:1800+30"]

1. d4 {[%emt 0:00:03]} d5 {[%emt 0:00:25]} 2. c4 {[%emt 0:00:07]} e6 {[%emt 0:00:45]} 3. Nf3 {[%emt 0:00:07]} Nf6 {[%emt 0:00:06]} 4. Nc3 {[%emt 0:00:03]} Bb4 {[%emt 0:00:30]} 5. cxd5 {[%emt 0:00:14]} exd5 {[%emt 0:00:31]} 6. Bg5 {[%emt 0:00:06]} h6 {[%emt 0:00:36]} 7. Bh4 {[%emt 0:00:21]} g5 {[%emt 0:02:26]} 8. Bg3 {[%emt 0:00:06]} Ne4 {[%emt 0:01:03]} 9. Nd2 {[%emt 0:00:57]} Nxg3 {[%emt 0:03:54]} 10. hxg3 {[%emt 0:01:10]} Nc6 {[%emt 0:01:47]} 11. e3 {[%emt 0:01:35]} Bf5 {[%emt 0:17:52]} 12. Be2 {[%emt 0:20:41]} Qd7 {[%emt 0:05:41]} 13. a3 {[%emt 0:02:24]} Bxc3 {[%emt 0:03:16]} 14. bxc3 {[%emt 0:00:20]} Na5 {[%emt 0:08:36]} 15. c4 {[%emt 0:27:52]} Nxc4 {[%emt 0:04:24]} 16. Nxc4 {[%emt 0:01:11]} dxc4 {[%emt 0:00:06]} 17. Bxc4 {[%emt 0:00:02]} O-O-O {[%emt 0:18:28]} 18. Qb3 {[%emt 0:04:13]} Be6 {[%emt 0:03:32]} 19. Rc1 {[%emt 0:04:37]} Bxc4 {[%emt 0:04:48]} 20. Rxc4 {[%emt 0:07:01]} h5 {[%emt 0:04:48]} 21. O-O {[%emt 0:07:10]} Kb8 {[%emt 0:03:35]} 22. Rb1 {[%emt 0:05:03]} b6 {[%emt 0:00:27]} 23. Qb5 {[%emt 0:01:03]} Qxb5 {[%emt 0:06:02]} 24. Rxb5 {[%emt 0:00:07]} f6 {[%emt 0:00:47]} 25. Kf1 {[%emt 0:02:13]} 1/2-1/2

[Event "European Womens-ch 2025"]
[Site "Rhodes"]
[Date "2025.04.02"]
[Round "3.3"]
[White "Unuk, Laura"]
[Black "Danielian, Elina"]
[Result "1/2-1/2"]
[Annotator "RC"]
[ECO "A46"]
[WhiteElo "2301"]
[BlackElo "2398"]
[PlyCount "89"]
[EventDate "2025.03.29"]
[EventType "swiss"]
[EventCountry "GRE"]
[SourceTitle "playchess.com"]
[Source "ChessBase"]
[SourceQuality "1"]
[TimeControl "40/5400+30:1800+30"]

1. d4 {[%emt 0:02:00]} Nf6 {[%emt 0:00:06]} 2. Nf3 {[%emt 0:00:16]} e6 {[%emt 0:00:11]} 3. g3 {[%emt 0:00:05]} b5 {[%emt 0:01:52]} 4. a4 {[%emt 0:03:52]} b4 {[%emt 0:00:20]} 5. Bg2 {[%emt 0:00:12]} Bb7 {[%emt 0:00:23]} 6. c4 {[%emt 0:03:57]} bxc3 {[%emt 0:21:05]} 7. Nxc3 {[%emt 0:02:11]} c5 {[%emt 0:00:19]} 8. O-O {[%emt 0:03:34]} cxd4 {[%emt 0:08:18]} 9. Nb5 {[%emt 0:04:59]} a6 {[%emt 0:03:25]} 10. Nbxd4 {[%emt 0:00:35]} Be7 {[%emt 0:04:49]} 11. a5 {[%emt 0:06:29]} O-O {[%emt 0:00:45]} 12. Qa4 {[%emt 0:07:10]} h6 {[%emt 0:13:42]} 13. Be3 {[%emt 0:05:13]} Be4 {[%emt 0:05:25]} 14. Rfc1 {[%emt 0:05:50]} Nc6 {[%emt 0:01:56]} 15. Nb3 {[%emt 0:06:56]} Qb8 {[%emt 0:11:53]} 16. Bb6 {[%emt 0:08:10]} Rc8 {[%emt 0:04:08]} 17. Nbd2 {[%emt 0:03:49]} Bh7 {[%emt 0:06:07]} 18. e4 {[%emt 0:16:57]} Qb7 {[%emt 0:04:24]} 19. Rc3 {[%emt 0:00:21]} Nb4 {[%emt 0:06:37]} 20. Rb3 {[%emt 0:07:05]} Nc2 {[%emt 0:00:51]} 21. Bc5 {[%emt 0:08:24]} Qc6 {[%emt 0:01:53]} 22. Bxe7 {[%emt 0:00:09]} Nxa1 {[%emt 0:00:04]} 23. Qxa1 {[%emt 0:00:05]} Nxe4 {[%emt 0:02:24]} 24. Nxe4 {[%emt 0:00:39]} Bxe4 {[%emt 0:00:45]} 25. Ba3 {[%emt 0:02:54]} Qd5 {[%emt 0:00:38]} 26. Re3 {[%emt 0:00:20]} Rab8 {[%emt 0:00:22]} 27. Qe1 {[%emt 0:00:34]} f5 {[%emt 0:00:17]} 28. Nh4 {[%emt 0:00:23]} Bxg2 {[%emt 0:00:54]} 29. Nxg2 {[%emt 0:00:02]} Rc2 {[%emt 0:00:09]} 30. h4 {[%emt 0:01:08]} Rbc8 {[%emt 0:00:21]} 31. Kh2 {[%emt 0:00:30]} Qb5 {[%emt 0:01:03]} 32. Re5 {[%emt 0:00:52]} Qb7 {[%emt 0:00:11]} 33. Qe3 {[%emt 0:00:31]} Rc1 {[%emt 0:00:18]} 34. h5 {[%emt 0:00:34]} Rd1 {[%emt 0:00:42]} 35. Rc5 {[%emt 0:00:37]} Rxc5 {[%emt 0:00:12]} 36. Qxc5 {[%emt 0:00:21]} d6 {[%emt 0:00:59]} 37. Qc4 {[%emt 0:00:20]} Kf7 {[%emt 0:00:39]} 38. Qe2 {[%emt 0:00:22]} Qd5 {[%emt 0:00:24]} 39. Bb4 {[%emt 0:00:59]} Kg8 {[%emt 0:00:37]} 40. Bc3 {[%emt 0:00:00]} e5 {[%emt 0:00:00]} 41. Qxa6 {[%emt 0:05:27]} Qf3 {[%emt 0:01:09]} 42. Qc8+ {[%emt 0:01:44]} Kh7 {[%emt 0:00:04]} 43. Qe8 {[%emt 0:00:13]} Qxf2 {[%emt 0:01:10]} 44. Qg6+ {[%emt 0:00:23]} Kh8 {[%emt 0:00:44]} 45. Qe8+ {[%emt 0:00:40]} 1/2-1/2

[Event "European Womens-ch 2025"]
[Site "Rhodes"]
[Date "2025.04.02"]
[Round "3.4"]
[White "Heinemann, Josefine"]
[Black "Narva, Mai"]
[Result "0-1"]
[Annotator "RC"]
[ECO "B52"]
[WhiteElo "2297"]
[BlackElo "2380"]
[PlyCount "114"]
[EventDate "2025.03.29"]
[EventType "swiss"]
[EventCountry "GRE"]
[SourceTitle "playchess.com"]
[Source "ChessBase"]
[SourceQuality "1"]
[TimeControl "40/5400+30:1800+30"]

1. e4 {[%emt 0:00:03]} c5 {[%emt 0:02:16]} 2. Nf3 {[%emt 0:00:10]} d6 {[%emt 0:00:16]} 3. Bb5+ {[%emt 0:00:12]} Bd7 {[%emt 0:00:22]} 4. Bxd7+ {[%emt 0:00:17]} Nxd7 {[%emt 0:00:06]} 5. O-O {[%emt 0:00:19]} Ngf6 {[%emt 0:00:18]} 6. Qe2 {[%emt 0:00:44]} e6 {[%emt 0:00:16]} 7. d4 {[%emt 0:00:50]} cxd4 {[%emt 0:00:18]} 8. Nxd4 {[%emt 0:00:05]} a6 {[%emt 0:00:21]} 9. c4 {[%emt 0:02:21]} Qa5 {[%emt 0:00:20]} 10. Rd1 {[%emt 0:02:16]} Rc8 {[%emt 0:05:19]} 11. b3 {[%emt 0:10:09]} Be7 {[%emt 0:09:36]} 12. Bb2 {[%emt 0:01:27]} O-O {[%emt 0:00:36]} 13. Nc3 {[%emt 0:02:18]} Rfe8 {[%emt 0:03:44]} 14. Rac1 {[%emt 0:05:24]} Qg5 {[%emt 0:02:42]} 15. Rc2 {[%emt 0:07:21]} Bf8 {[%emt 0:06:11]} 16. Bc1 {[%emt 0:14:29]} Qg6 {[%emt 0:02:45]} 17. f3 {[%emt 0:02:44]} h5 {[%emt 0:10:10]} 18. Qf2 {[%emt 0:04:01]} d5 {[%emt 0:13:17]} 19. cxd5 {[%emt 0:04:56]} exd5 {[%emt 0:00:14]} 20. Nxd5 {[%emt 0:01:54]} Nxd5 {[%emt 0:00:18]} 21. Rxc8 {[%emt 0:05:40]} Rxc8 {[%emt 0:00:05]} 22. exd5 {[%emt 0:00:03]} Nb6 {[%emt 0:04:50]} 23. Bb2 {[%emt 0:09:08]} Nxd5 {[%emt 0:03:50]} 24. Qg3 {[%emt 0:03:40]} Qf6 {[%emt 0:03:58]} 25. h4 {[%emt 0:05:25]} Bc5 {[%emt 0:08:24]} 26. Kh1 {[%emt 0:04:54]} Nb6 {[%emt 0:19:13]} 27. Qg5 {[%emt 0:05:13]} Qxg5 {[%emt 0:01:07]} 28. hxg5 {[%emt 0:00:03]} Rd8 {[%emt 0:00:21]} 29. Rd2 {[%emt 0:00:21]} g6 {[%emt 0:03:00]} 30. Bc3 {[%emt 0:01:39]} Nd5 {[%emt 0:00:14]} 31. Ne2 {[%emt 0:04:30]} Be3 {[%emt 0:00:08]} 32. Bf6 {[%emt 0:01:54]} Bxd2 {[%emt 0:00:53]} 33. Bxd8 {[%emt 0:00:03]} Be1 {[%emt 0:00:52]} 34. Nc1 {[%emt 0:01:58]} Nf4 {[%emt 0:00:37]} 35. a3 {[%emt 0:01:29]} Bd2 {[%emt 0:00:22]} 36. Na2 {[%emt 0:00:00]} Ne6 {[%emt 0:00:11]} 37. Bb6 {[%emt 0:00:00]} Nxg5 {[%emt 0:00:22]} 38. Kg1 {[%emt 0:00:00]} Kf8 {[%emt 0:00:38]} 39. Kf2 {[%emt 0:00:00]} h4 {[%emt 0:00:56]} 40. Ke2 {[%emt 0:00:00]} Bf4 {[%emt 0:00:00]} 41. Nc3 {[%emt 0:02:14]} Bd6 {[%emt 0:05:26]} 42. Bf2 {[%emt 0:05:00]} Bxa3 {[%emt 0:06:00]} 43. Bxh4 {[%emt 0:02:05]} Ne6 {[%emt 0:00:06]} 44. Nb1 {[%emt 0:10:41]} Bb4 {[%emt 0:01:09]} 45. Bf2 {[%emt 0:01:13]} Nf4+ {[%emt 0:03:55]} 46. Kf1 {[%emt 0:00:58]} Ke7 {[%emt 0:00:39]} 47. g3 {[%emt 0:01:23]} Nd3 {[%emt 0:00:19]} 48. Be3 {[%emt 0:00:11]} Kd6 {[%emt 0:00:18]} 49. Ke2 {[%emt 0:03:56]} Nc5 {[%emt 0:00:23]} 50. Bxc5+ {[%emt 0:00:44]} Kxc5 {[%emt 0:00:06]} 51. Kd3 {[%emt 0:00:03]} Kd5 {[%emt 0:00:26]} 52. g4 {[%emt 0:01:26]} g5 {[%emt 0:01:07]} 53. Ke3 {[%emt 0:00:15]} Ke5 {[%emt 0:00:23]} 54. Kd3 {[%emt 0:00:06]} b5 {[%emt 0:00:14]} 55. Ke3 {[%emt 0:00:16]} a5 {[%emt 0:00:35]} 56. Kd3 {[%emt 0:00:11]} Kf4 {[%emt 0:00:18]} 57. Ke2 {[%emt 0:00:06]} a4 {[%emt 0:00:16]} 0-1

[Event "European Womens-ch 2025"]
[Site "Rhodes"]
[Date "2025.04.02"]
[Round "3.5"]
[White "Socko, Monika"]
[Black "Urh, Zala"]
[Result "1/2-1/2"]
[Annotator "RC"]
[ECO "A16"]
[WhiteElo "2369"]
[BlackElo "2244"]
[PlyCount "101"]
[EventDate "2025.03.29"]
[EventType "swiss"]
[EventCountry "GRE"]
[SourceTitle "playchess.com"]
[Source "ChessBase"]
[SourceQuality "1"]
[TimeControl "40/5400+30:1800+30"]

1. c4 {[%emt 0:00:21]} Nf6 {[%emt 0:00:10]} 2. Nc3 {[%emt 0:00:29]} g6 {[%emt 0:00:06]} 3. e4 {[%emt 0:01:27]} e5 {[%emt 0:00:13]} 4. Nf3 {[%emt 0:02:28]} Bg7 {[%emt 0:01:29]} 5. Be2 {[%emt 0:04:54]} O-O {[%emt 0:01:16]} 6. O-O {[%emt 0:05:12]} Re8 {[%emt 0:06:59]} 7. d3 {[%emt 0:02:39]} c6 {[%emt 0:04:12]} 8. Re1 {[%emt 0:01:00]} d5 {[%emt 0:07:54]} 9. exd5 {[%emt 0:03:43]} cxd5 {[%emt 0:00:59]} 10. Bg5 {[%emt 0:00:05]} dxc4 {[%emt 0:07:09]} 11. dxc4 {[%emt 0:00:16]} Qxd1 {[%emt 0:01:09]} 12. Bxd1 {[%emt 0:07:05]} Be6 {[%emt 0:27:35]} 13. Nxe5 {[%emt 0:08:35]} Nbd7 {[%emt 0:08:07]} 14. Nxd7 {[%emt 0:03:17]} Nxd7 {[%emt 0:01:24]} 15. Ba4 {[%emt 0:02:31]} h6 {[%emt 0:01:26]} 16. Bf4 {[%emt 0:16:09]} Red8 {[%emt 0:03:21]} 17. Bc7 {[%emt 0:03:37]} Rdc8 {[%emt 0:01:59]} 18. Bxd7 {[%emt 0:00:55]} Bxd7 {[%emt 0:00:10]} 19. Nd5 {[%emt 0:00:19]} Kh8 {[%emt 0:03:05]} 20. Re7 {[%emt 0:04:30]} Be6 {[%emt 0:01:42]} 21. Re1 {[%emt 0:05:32]} Bxb2 {[%emt 0:04:31]} 22. Rb1 {[%emt 0:02:48]} Ba3 {[%emt 0:09:41]} 23. Be5+ {[%emt 0:00:29]} Kg8 {[%emt 0:00:03]} 24. Rexb7 {[%emt 0:01:04]} Rxc4 {[%emt 0:00:23]} 25. Nc7 {[%emt 0:01:14]} Rc8 {[%emt 0:00:47]} 26. h3 {[%emt 0:02:09]} Bf5 {[%emt 0:01:05]} 27. R1b3 {[%emt 0:06:56]} Bc5 {[%emt 0:00:25]} 28. Nd5 {[%emt 0:00:04]} Kf8 {[%emt 0:01:55]} 29. Rb8 {[%emt 0:04:40]} Rc1+ {[%emt 0:01:41]} 30. Kh2 {[%emt 0:00:01]} Bxf2 {[%emt 0:00:01]} 31. Bf4 {[%emt 0:00:09]} Rxb8 {[%emt 0:03:32]} 32. Rxb8+ {[%emt 0:00:01]} Rc8 {[%emt 0:00:07]} 33. Bxh6+ {[%emt 0:00:02]} Ke8 {[%emt 0:00:09]} 34. Rb7 {[%emt 0:00:50]} Bd4 {[%emt 0:01:05]} 35. Re7+ {[%emt 0:03:03]} Kd8 {[%emt 0:00:01]} 36. Rxf7 {[%emt 0:00:05]} Rc5 {[%emt 0:01:58]} 37. Bg5+ {[%emt 0:04:16]} Ke8 {[%emt 0:00:04]} 38. Re7+ {[%emt 0:00:27]} Kf8 {[%emt 0:00:03]} 39. Bh6+ {[%emt 0:00:37]} Kg8 {[%emt 0:00:04]} 40. Ne3 {[%emt 0:00:00]} Be5+ {[%emt 0:00:00]} 41. Kg1 {[%emt 0:00:48]} Bd4 {[%emt 0:08:06]} 42. g4 {[%emt 0:10:13]} Bb1 {[%emt 0:02:20]} 43. Rd7 {[%emt 0:03:29]} Rc1+ {[%emt 0:06:31]} 44. Kf2 {[%emt 0:02:52]} Rc2+ {[%emt 0:04:29]} 45. Kf3 {[%emt 0:00:22]} Bxe3 {[%emt 0:00:33]} 46. Bxe3 {[%emt 0:00:26]} a5 {[%emt 0:02:53]} 47. a4 {[%emt 0:06:17]} Rc4 {[%emt 0:01:52]} 48. Rd4 {[%emt 0:00:50]} Rxd4 {[%emt 0:00:06]} 49. Bxd4 {[%emt 0:00:03]} Bc2 {[%emt 0:00:04]} 50. Bc3 {[%emt 0:00:03]} Bxa4 {[%emt 0:00:04]} 51. Bxa5 {[%emt 0:00:03]} 1/2-1/2

[Event "European Womens-ch 2025"]
[Site "Rhodes"]
[Date "2025.04.02"]
[Round "3.6"]
[White "Yao, Lan"]
[Black "Roebers, Eline"]
[Result "0-1"]
[Annotator "RC"]
[ECO "C02"]
[WhiteElo "2294"]
[BlackElo "2367"]
[PlyCount "102"]
[EventDate "2025.03.29"]
[EventType "swiss"]
[EventCountry "GRE"]
[SourceTitle "playchess.com"]
[Source "ChessBase"]
[SourceQuality "1"]
[TimeControl "40/5400+30:1800+30"]

1. e4 {[%emt 0:00:03]} e6 {[%emt 0:00:02]} 2. d4 {[%emt 0:00:09]} d5 {[%emt 0:00:04]} 3. e5 {[%emt 0:00:13]} c5 {[%emt 0:00:04]} 4. c3 {[%emt 0:00:03]} Nc6 {[%emt 0:00:02]} 5. Nf3 {[%emt 0:00:05]} Qb6 {[%emt 0:00:03]} 6. a3 {[%emt 0:00:22]} Nh6 {[%emt 0:00:05]} 7. b4 {[%emt 0:00:17]} cxd4 {[%emt 0:00:03]} 8. cxd4 {[%emt 0:00:18]} Nf5 {[%emt 0:00:04]} 9. Be3 {[%emt 0:01:19]} f6 {[%emt 0:00:16]} 10. Bd3 {[%emt 0:02:34]} Nxe3 {[%emt 0:02:18]} 11. fxe3 {[%emt 0:00:07]} fxe5 {[%emt 0:00:12]} 12. b5 {[%emt 0:00:07]} Nxd4 {[%emt 0:04:54]} 13. exd4 {[%emt 0:00:10]} e4 {[%emt 0:00:03]} 14. Bxe4 {[%emt 0:01:00]} dxe4 {[%emt 0:00:05]} 15. Ne5 {[%emt 0:00:03]} Bd7 {[%emt 0:25:30]} 16. Nc3 {[%emt 0:21:45]} Qa5 {[%emt 0:12:06]} 17. O-O {[%emt 0:08:40]} Qxc3 {[%emt 0:01:50]} 18. Rc1 {[%emt 0:00:05]} Qxa3 {[%emt 0:23:49]} 19. Qh5+ {[%emt 0:10:45]} g6 {[%emt 0:00:06]} 20. Nxg6 {[%emt 0:00:43]} hxg6 {[%emt 0:00:06]} 21. Qxg6+ {[%emt 0:02:43]} Kd8 {[%emt 0:00:06]} 22. Qf6+ {[%emt 0:00:04]} Be7 {[%emt 0:00:04]} 23. Qxh8+ {[%emt 0:00:04]} Be8 {[%emt 0:00:02]} 24. Qe5 {[%emt 0:01:28]} Qd6 {[%emt 0:00:58]} 25. Qxe4 {[%emt 0:08:12]} Bxb5 {[%emt 0:04:50]} 26. Rfe1 {[%emt 0:20:12]} Bc6 {[%emt 0:01:46]} 27. Qxe6 {[%emt 0:00:57]} Qxe6 {[%emt 0:01:38]} 28. Rxe6 {[%emt 0:00:05]} Kd7 {[%emt 0:00:28]} 29. Rg6 {[%emt 0:01:31]} Rh8 {[%emt 0:01:18]} 30. Re1 {[%emt 0:04:23]} Bd6 {[%emt 0:01:44]} 31. Rg7+ {[%emt 0:01:32]} Kd8 {[%emt 0:01:14]} 32. g3 {[%emt 0:00:22]} a5 {[%emt 0:01:01]} 33. h4 {[%emt 0:05:10]} a4 {[%emt 0:00:33]} 34. d5 {[%emt 0:03:08]} Bd7 {[%emt 0:00:23]} 35. Rg6 {[%emt 0:03:30]} Bc5+ {[%emt 0:01:33]} 36. Kg2 {[%emt 0:00:10]} a3 {[%emt 0:01:43]} 37. Re2 {[%emt 0:01:05]} Re8 {[%emt 0:01:23]} 38. Rd2 {[%emt 0:02:02]} Bf5 {[%emt 0:02:41]} 39. Rg7 {[%emt 0:02:21]} Be3 {[%emt 0:01:22]} 40. Ra2 {[%emt 0:00:00]} Bc1 {[%emt 0:00:00]} 41. Rxb7 {[%emt 0:16:44]} Be4+ {[%emt 0:00:57]} 42. Kh3 {[%emt 0:01:59]} Bxd5 {[%emt 0:00:06]} 43. Rb1 {[%emt 0:05:38]} Bxa2 {[%emt 0:00:33]} 44. Rxc1 {[%emt 0:00:05]} Re2 {[%emt 0:00:09]} 45. h5 {[%emt 0:00:48]} Be6+ {[%emt 0:00:53]} 46. Kh4 {[%emt 0:00:14]} Ke7 {[%emt 0:00:24]} 47. Kg5 {[%emt 0:04:06]} Rg2 {[%emt 0:01:29]} 48. Kf4 {[%emt 0:00:45]} Kf6 {[%emt 0:00:23]} 49. Rh1 {[%emt 0:01:26]} a2 {[%emt 0:00:47]} 50. h6 {[%emt 0:00:18]} Rh2 {[%emt 0:00:15]} 51. Rf1 {[%emt 0:01:35]} Rf2+ {[%emt 0:00:10]} 0-1

[Event "European Womens-ch 2025"]
[Site "Rhodes"]
[Date "2025.04.02"]
[Round "3.7"]
[White "Bulmaga, Irina"]
[Black "Zherebtsova, Alexandra"]
[Result "1/2-1/2"]
[Annotator "RC"]
[ECO "C90"]
[WhiteElo "2362"]
[BlackElo "2229"]
[PlyCount "154"]
[EventDate "2025.03.29"]
[EventType "swiss"]
[EventCountry "GRE"]
[SourceTitle "playchess.com"]
[Source "ChessBase"]
[SourceQuality "1"]
[TimeControl "40/5400+30:1800+30"]

1. e4 {[%emt 0:00:04]} e5 {[%emt 0:03:30]} 2. Nf3 {[%emt 0:00:04]} Nc6 {[%emt 0:00:04]} 3. Bb5 {[%emt 0:00:12]} a6 {[%emt 0:01:39]} 4. Ba4 {[%emt 0:00:08]} Nf6 {[%emt 0:00:31]} 5. O-O {[%emt 0:00:12]} Be7 {[%emt 0:00:38]} 6. Re1 {[%emt 0:00:15]} b5 {[%emt 0:00:30]} 7. Bb3 {[%emt 0:00:07]} d6 {[%emt 0:01:23]} 8. a4 {[%emt 0:00:14]} Bd7 {[%emt 0:02:34]} 9. Nc3 {[%emt 0:00:39]} Na5 {[%emt 0:03:16]} 10. Ba2 {[%emt 0:00:59]} c5 {[%emt 0:09:48]} 11. Nd5 {[%emt 0:06:11]} O-O {[%emt 0:02:42]} 12. b4 {[%emt 0:10:16]} cxb4 {[%emt 0:05:02]} 13. axb5 {[%emt 0:03:19]} b3 {[%emt 0:04:09]} 14. Bxb3 {[%emt 0:10:49]} Nxb3 {[%emt 0:00:37]} 15. Nxe7+ {[%emt 0:00:46]} Qxe7 {[%emt 0:00:16]} 16. cxb3 {[%emt 0:00:07]} Bxb5 {[%emt 0:08:07]} 17. d4 {[%emt 0:03:54]} Qb7 {[%emt 0:11:21]} 18. dxe5 {[%emt 0:11:11]} dxe5 {[%emt 0:04:18]} 19. Nxe5 {[%emt 0:00:30]} Nxe4 {[%emt 0:06:37]} 20. Qf3 {[%emt 0:05:45]} Nc5 {[%emt 0:01:49]} 21. Qe3 {[%emt 0:09:58]} Ne6 {[%emt 0:11:50]} 22. Bb2 {[%emt 0:00:08]} Rad8 {[%emt 0:05:04]} 23. Ng4 {[%emt 0:14:40]} Qd5 {[%emt 0:13:07]} 24. h4 {[%emt 0:07:07]} Qf5 {[%emt 0:01:53]} 25. Qg3 {[%emt 0:01:57]} Qf4 {[%emt 0:01:06]} 26. Re3 {[%emt 0:09:58]} Qxg3 {[%emt 0:00:12]} 27. Rxg3 {[%emt 0:00:50]} Rd3 {[%emt 0:00:42]} 28. Nf6+ {[%emt 0:00:52]} Kh8 {[%emt 0:00:08]} 29. Rxd3 {[%emt 0:00:15]} Bxd3 {[%emt 0:00:05]} 30. Nd7 {[%emt 0:00:06]} Rc8 {[%emt 0:01:35]} 31. Ne5 {[%emt 0:00:25]} Bb5 {[%emt 0:00:47]} 32. Nxf7+ {[%emt 0:00:05]} Kg8 {[%emt 0:00:05]} 33. Nd6 {[%emt 0:00:20]} Rc2 {[%emt 0:00:09]} 34. Be5 {[%emt 0:01:10]} Be2 {[%emt 0:01:09]} 35. Ra4 {[%emt 0:01:10]} h5 {[%emt 0:00:41]} 36. Rb4 {[%emt 0:00:18]} Rc5 {[%emt 0:00:27]} 37. Re4 {[%emt 0:01:01]} Bd3 {[%emt 0:00:27]} 38. Re3 {[%emt 0:00:17]} Rd5 {[%emt 0:00:29]} 39. Bg3 {[%emt 0:01:21]} Nc5 {[%emt 0:00:26]} 40. Re8+ {[%emt 0:00:00]} Kh7 {[%emt 0:00:00]} 41. b4 {[%emt 0:09:53]} Nd7 {[%emt 0:02:04]} 42. Re7 {[%emt 0:05:38]} Nf6 {[%emt 0:01:49]} 43. f3 {[%emt 0:00:48]} a5 {[%emt 0:11:34]} 44. bxa5 {[%emt 0:00:37]} Rxa5 {[%emt 0:00:12]} 45. Be5 {[%emt 0:02:24]} Kg8 {[%emt 0:04:30]} 46. Bxf6 {[%emt 0:05:00]} gxf6 {[%emt 0:00:09]} 47. Rd7 {[%emt 0:01:42]} Bg6 {[%emt 0:04:39]} 48. Kh2 {[%emt 0:00:21]} Kf8 {[%emt 0:00:30]} 49. Rc7 {[%emt 0:00:47]} Ra4 {[%emt 0:03:28]} 50. Kg3 {[%emt 0:00:28]} Ra3 {[%emt 0:00:07]} 51. Nb7 {[%emt 0:01:18]} Ra7 {[%emt 0:01:18]} 52. Nc5 {[%emt 0:01:30]} Rxc7 {[%emt 0:00:04]} 53. Ne6+ {[%emt 0:00:04]} Ke7 {[%emt 0:00:49]} 54. Nxc7 {[%emt 0:00:03]} Kd6 {[%emt 0:01:00]} 55. Nb5+ {[%emt 0:00:03]} Ke5 {[%emt 0:01:06]} 56. Nc3 {[%emt 0:03:05]} Kd4 {[%emt 0:01:06]} 57. Ne2+ {[%emt 0:01:34]} Ke3 {[%emt 0:01:10]} 58. Nf4 {[%emt 0:00:59]} Bf7 {[%emt 0:00:07]} 59. Nh3 {[%emt 0:00:02]} Be6 {[%emt 0:01:04]} 60. Kh2 {[%emt 0:01:34]} Bd7 {[%emt 0:01:03]} 61. Kg3 {[%emt 0:00:03]} Be6 {[%emt 0:00:59]} 62. Nf2 {[%emt 0:00:03]} Bd5 {[%emt 0:02:03]} 63. Nd1+ {[%emt 0:00:42]} Kd2 {[%emt 0:00:15]} 64. Nb2 {[%emt 0:00:29]} Bb3 {[%emt 0:01:09]} 65. Kf4 {[%emt 0:00:02]} Kc3 {[%emt 0:00:35]} 66. Kf5 {[%emt 0:00:03]} Kxb2 {[%emt 0:00:08]} 67. Kxf6 {[%emt 0:00:21]} Kc3 {[%emt 0:00:32]} 68. g4 {[%emt 0:00:29]} Kd4 {[%emt 0:00:54]} 69. Kg5 {[%emt 0:04:46]} hxg4 {[%emt 0:00:24]} 70. fxg4 {[%emt 0:00:05]} Ke5 {[%emt 0:00:16]} 71. Kg6 {[%emt 0:00:58]} Bc2+ {[%emt 0:00:17]} 72. Kh6 {[%emt 0:00:54]} Kf6 {[%emt 0:00:32]} 73. h5 {[%emt 0:00:18]} Kf7 {[%emt 0:00:12]} 74. g5 {[%emt 0:00:05]} Kg8 {[%emt 0:00:20]} 75. g6 {[%emt 0:00:18]} Bd3 {[%emt 0:00:29]} 76. Kg5 {[%emt 0:00:03]} Bc2 {[%emt 0:00:29]} 77. h6 {[%emt 0:00:17]} Bxg6 {[%emt 0:00:19]} 1/2-1/2